[Event "IV Estrellas 2022"]
[Site "La Palma"]
[Date "2022.08.07"]
[Round "3.15"]
[White "Antic, Dejan"]
[Black "Chitsazian, Daniel"]
[Result "1-0"]
[ECO "A13"]
[WhiteElo "2452"]
[BlackElo "1767"]
[Annotator "TA"]
[PlyCount "95"]
[EventDate "2022.08.06"]
[EventType "swiss"]
[EventCountry "ESP"]
[SourceTitle "playchess.com"]
[Source "ChessBase"]
[SourceQuality "1"]
[TimeControl "5400+30"]

{[%evp 10,95,0,-4,34,47,33,33,48,40,76,17,87,104,112,107,106,99,108,108,97,100,106,0,83,82,90,0,9,-33,-48,-36,0,0,0,-95,-94,-118,178,176,157,167,155,154,603,397,869,920,808,782,1011,527,504,510,29970,29972,29993,5043,29994,2620,2620,1908,1022,1014,29996,29997,29997,29991,29997,29990,29994,29993,29993,29994,29994,29993,29993,29988,29994,29989,29988,29989,29989,29990,29990,29989,29990,29991]} 1. Nf3 {[%emt 0:01:23]} d5 {[%emt 0:00:22]} 2. e3 {[%emt 0:00:32]} Nf6 {[%emt 0:00:31]} 3. c4 {[%emt 0:00:20]} e6 {[%emt 0:06:11]} 4. b3 {[%emt 0:00:48]} c5 {[%emt 0:02:27]} 5. Bb2 {[%emt 0:01:13]} Nc6 {[%emt 0:01:03]} 6. cxd5 {[%emt 0:00:45]} Nxd5 {[%emt 0:02:02] A13: English Opening: 1...e6.} 7. Nc3 {[%emt 0:02:52]} Nxc3 {[%emt 0:10:08]} 8. Bxc3 {[%emt 0:01:08] [#]} Qc7 $146 {[%emt 0:05:57] White is slightly better.} ({Predecessor:} 8... Bd7 9. h4 h6 10. Qb1 Qc7 11. Bd3 Nb4 12. Bxb4 cxb4 13. Qb2 Qd6 14. Ne5 Be7 {1-0 (67) Urazayev,A (2438)-Andrejevs,A (2224) Chess.com INT 2022}) 9. Rc1 {[%emt 0:10:16]} b6 {[%emt 0:05:46]} 10. d4 {[%emt 0:10:14]} (10. Bc4 $16) 10... cxd4 {[%emt 0:11:13]} (10... Bb7 $1 $11) 11. Nxd4 $16 {[%emt 0:00:35]} Bb7 {[%emt 0:13:43]} 12. Bb5 {[%emt 0:11:10]} Ba3 {[%emt 0:09:32]} 13. Rc2 {[%emt 0:05:42]} O-O {[%emt 0:03:21] aiming for ...Nb4.} 14. Nxc6 {[%emt 0:15:10]} Bxc6 {[%emt 0:01:36] [#]} 15. Qg4 $1 {[%emt 0:02:50][%csl Gc3][%cal Rg4g7]} e5 {[%emt 0:02:37] [#]} (15... f5 $2 16. Qc4 Rac8 17. Qxe6+ Qf7 18. Bc4 $18) (15... g6 16. Bf6) 16. Ba1 {[%emt 0:09:51]} (16. Bxc6 $1 $16 Qxc6 {[#]} 17. Bxe5 $1 Bb4+ 18. Kd1 Qd5+ 19. Bd4) 16... Bc5 {[%emt 0:06:24]} (16... Bd7 $1 $11 17. Rxc7 Bxg4) 17. Bxc6 $40 {[%emt 0:03:07][%mdl 128] White goes for the king.} Qxc6 {[%emt 0:00:07]} 18. O-O {[%emt 0:00:25]} (18. Bxe5 $16 {[%csl Ge5][%cal Rg4g7]} Bb4+ 19. Kd1 Qd5+ 20. Bd4) 18... Rfe8 $11 {[%emt 0:09:03]} 19. b4 {[%emt 0:02:35]} Qa4 $1 {[%emt 0:00:16][%csl LRb4,LRc2]} 20. Rc4 {[%emt 0:00:07]} Bd6 {[%emt 0:00:12]} (20... Bf8 $5 {[%cal Ra4a2]}) 21. f4 {[%emt 0:01:08]} Qxa2 {[%emt 0:01:22]} 22. Rc6 {[%emt 0:01:56]} (22. fxe5 $1 $11 Bf8 23. Rc7) 22... Qd5 $17 {[%emt 0:00:45]} 23. b5 {[%emt 0:01:10]} a6 $2 {[%emt 0:01:40][%mdl 8192]} (23... Qd3 $17 {and life is bright. Hoping for ...Bc5.} 24. fxe5 (24. Rxd6 $2 Qxd6 25. Bxe5 Qg6 $19) 24... Qxe3+ 25. Kh1 Bxe5) 24. Rd1 $18 {[%emt 0:00:28][%mdl 64] Skewer} Qe4 {[%emt 0:01:25] And now ...Bf8 would win.} 25. Rcxd6 {[%emt 0:00:22]} ({Resist} 25. Rdxd6 axb5 26. Bb2 (26. Bxe5 Rxe5 27. Rc8+ Re8 $15) 26... Qxe3+ 27. Kf1 h6 $16) 25... Qxe3+ {[%emt 0:00:12]} 26. Kf1 {[%emt 0:02:09]} f5 $2 {[%emt 0:03:49] Loses the game.} (26... Qxf4+ $16 27. Qxf4 exf4 28. Rxb6 axb5 29. Rxb5 h6) 27. Qg3 {[%emt 0:04:10]} Qxf4+ {[%emt 0:00:54]} (27... Qxg3 28. hxg3 axb5 29. Bxe5 Kf7 30. Rxb6 Rad8) 28. Qxf4 {[%emt 0:00:06]} exf4 {[%emt 0:00:03]} 29. Rd7 {[%emt 0:00:38]} axb5 {[%emt 0:00:32]} 30. Rxg7+ {[%emt 0:00:09]} Kf8 {[%emt 0:00:22][%cal Oa8a1] ...Rxa1! is the strong threat.} 31. Rxh7 {[%emt 0:00:17]} Ra2 {[%emt 0:01:50]} (31... Kg8 $18) 32. Bf6 {[%emt 0:00:41]} Ree2 {[%emt 0:00:33]} 33. Rd8+ {[%emt 0:00:11]} Re8 {[%emt 0:00:01]} 34. Rh8+ {[%emt 0:00:27]} (34. Rdd7 $142 Ra1+ 35. Bxa1 Re7 36. Rdxe7 f3 37. gxf3 b4 38. Bf6 Kg8 39. Rh8#) 34... Kf7 {[%emt 0:00:01]} 35. Rhxe8 {[%emt 0:00:06] Black must now prevent Rf8+.} Kxf6 {[%emt 0:00:13]} 36. Rd6+ {[%emt 0:00:04]} Kg5 {[%emt 0:00:48]} 37. Rg8+ {[%emt 0:00:09] White mates.} Kh5 {[%emt 0:00:09]} 38. Rxb6 {[%emt 0:00:12]} Rb2 {[%emt 0:01:48]} 39. Rf6 {[%emt 0:00:07]} b4 {[%emt 0:00:30]} 40. Rxf5+ {[%emt 0:00:06]} Kh6 {[%emt 0:00:05]} 41. Rxf4 {[%emt 0:00:05][%cal Rf4h4]} Rb1+ {[%emt 0:00:27]} 42. Kf2 {[%emt 0:00:13][%cal Rf4h4]} Rb2+ {[%emt 0:00:25]} 43. Ke3 {[%emt 0:00:17][%cal Rf4h4]} Rb3+ {[%emt 0:00:43]} 44. Kd4 {[%emt 0:00:08][%cal Rf4h4]} Kh7 {[%emt 0:00:41]} 45. Rg3 {[%emt 0:00:08]} Rxg3 {[%emt 0:00:33]} 46. hxg3 {[%emt 0:00:04]} b3 {[%emt 0:00:02]} 47. Kc3 {[%emt 0:00:05]} b2 {[%emt 0:00:17]} 48. Kxb2 {[%emt 0:00:05] Weighted Error Value: White=0.37/Black=0.85} 1-0

[Event "IV Estrellas 2022"]
[Site "La Palma"]
[Date "2022.08.07"]
[Round "3.16"]
[White "Capote Robayna, Nathaniel"]
[Black "Camps Abadia, Arnau"]
[Result "1-0"]
[ECO "A80"]
[WhiteElo "2150"]
[BlackElo "1782"]
[Annotator "RC"]
[PlyCount "59"]
[EventDate "2022.08.06"]
[EventType "swiss"]
[EventCountry "ESP"]
[SourceTitle "playchess.com"]
[Source "ChessBase"]
[SourceQuality "1"]
[TimeControl "5400+30"]

1. d4 {[%emt 0:00:23]} e6 {[%emt 0:00:19]} 2. Bf4 {[%emt 0:00:10]} f5 {[%emt 0:01:02]} 3. Nf3 {[%emt 0:00:39]} Nf6 {[%emt 0:00:10]} 4. e3 {[%emt 0:00:10]} b6 {[%emt 0:00:04]} 5. Be2 {[%emt 0:02:35]} Bb7 {[%emt 0:00:13]} 6. O-O {[%emt 0:01:04]} Be7 {[%emt 0:06:55]} 7. c4 {[%emt 0:00:41]} O-O {[%emt 0:00:09]} 8. h3 {[%emt 0:00:10]} Ne4 {[%emt 0:04:27]} 9. Bh2 {[%emt 0:02:54]} Bf6 {[%emt 0:02:34]} 10. Nc3 {[%emt 0:03:29]} Nxc3 {[%emt 0:01:38]} 11. bxc3 {[%emt 0:00:11]} d6 {[%emt 0:02:27]} 12. Rc1 {[%emt 0:06:10]} Nd7 {[%emt 0:00:27]} 13. Qb3 {[%emt 0:01:07]} Qe7 {[%emt 0:00:56]} 14. c5 {[%emt 0:02:44]} Kh8 {[%emt 0:06:03]} 15. cxd6 {[%emt 0:01:39]} cxd6 {[%emt 0:00:01]} 16. Qa3 {[%emt 0:11:10]} e5 {[%emt 0:05:48]} 17. dxe5 {[%emt 0:04:58]} Bxe5 {[%emt 0:09:17]} 18. Nxe5 {[%emt 0:00:56]} Nxe5 {[%emt 0:00:11]} 19. Rfd1 {[%emt 0:00:14]} Qg5 {[%emt 0:03:57]} 20. Bg3 {[%emt 0:03:36]} f4 {[%emt 0:03:39]} 21. exf4 {[%emt 0:00:27]} Rxf4 {[%emt 0:00:07]} 22. Qxd6 {[%emt 0:08:35]} Re8 {[%emt 0:14:27]} 23. Bf1 {[%emt 0:04:46]} Rf6 {[%emt 0:01:55]} 24. Qxe5 {[%emt 0:01:05]} Qg6 {[%emt 0:01:04]} 25. Qc7 {[%emt 0:02:02]} Rf7 {[%emt 0:00:52]} 26. Rd7 {[%emt 0:00:35]} Rxd7 {[%emt 0:00:17]} 27. Qxd7 {[%emt 0:00:10]} Bc8 {[%emt 0:00:09]} 28. Qd6 {[%emt 0:00:41]} Qf7 {[%emt 0:02:14]} 29. Bb5 {[%emt 0:03:00]} Rf8 {[%emt 0:00:20]} 30. Re1 {[%emt 0:00:08]} 1-0

[Event "IV Estrellas 2022"]
[Site "La Palma"]
[Date "2022.08.07"]
[Round "3.17"]
[White "Ramirez Maillo, Juan Adonay"]
[Black "Perez Bolanos, David"]
[Result "0-1"]
[ECO "B22"]
[WhiteElo "1853"]
[BlackElo "2041"]
[Annotator "RC"]
[PlyCount "61"]
[EventDate "2022.08.06"]
[EventType "swiss"]
[EventCountry "ESP"]
[SourceTitle "playchess.com"]
[Source "ChessBase"]
[SourceQuality "1"]
[TimeControl "5400+30"]

1. e4 {[%emt 0:00:06]} c5 {[%emt 0:00:42]} 2. c3 {[%emt 0:00:06]} Nf6 {[%emt 0:00:33]} 3. e5 {[%emt 0:00:07]} Nd5 {[%emt 0:00:10]} 4. g3 {[%emt 0:01:13]} d6 {[%emt 0:02:56]} 5. exd6 {[%emt 0:00:15]} Qxd6 {[%emt 0:01:21]} 6. Bg2 {[%emt 0:00:27]} e6 {[%emt 0:06:36]} 7. Ne2 {[%emt 0:00:44]} Nc6 {[%emt 0:03:10]} 8. O-O {[%emt 0:00:26]} Be7 {[%emt 0:01:29]} 9. Na3 {[%emt 0:00:38]} Bf6 {[%emt 0:10:55]} 10. d4 {[%emt 0:02:02]} cxd4 {[%emt 0:01:19]} 11. Nb5 {[%emt 0:01:26]} Qc5 {[%emt 0:04:16]} 12. c4 {[%emt 0:01:21]} Nce7 {[%emt 0:16:05]} 13. cxd5 {[%emt 0:14:27]} Qxb5 {[%emt 0:05:19]} 14. Nxd4 {[%emt 0:01:04]} Qc4 {[%emt 0:06:02]} 15. d6 {[%emt 0:19:48]} Qxd4 {[%emt 0:03:14]} 16. Qxd4 {[%emt 0:01:15]} Bxd4 {[%emt 0:02:51]} 17. Rd1 {[%emt 0:01:01]} e5 {[%emt 0:02:35]} 18. dxe7 {[%emt 0:01:57]} Kxe7 {[%emt 0:01:33]} 19. Kf1 {[%emt 0:10:31]} Bf5 {[%emt 0:09:01]} 20. Bxb7 {[%emt 0:01:31]} Rab8 {[%emt 0:00:45]} 21. Bd5 {[%emt 0:00:07]} Bxb2 {[%emt 0:05:01]} 22. Bxb2 {[%emt 0:01:30]} Rxb2 {[%emt 0:00:08]} 23. Rac1 {[%emt 0:00:59]} Rd8 {[%emt 0:02:31]} 24. Rc7+ {[%emt 0:02:53]} Rd7 {[%emt 0:00:42]} 25. Rdc1 {[%emt 0:01:23]} Rxc7 {[%emt 0:03:16]} 26. Rxc7+ {[%emt 0:00:08]} Kd6 {[%emt 0:00:06]} 27. Rxf7 {[%emt 0:00:25]} Bd3+ {[%emt 0:00:17]} 28. Ke1 {[%emt 0:00:38]} Kxd5 {[%emt 0:00:14]} 29. Rxa7 {[%emt 0:00:19]} Re2+ {[%emt 0:00:31]} 30. Kd1 {[%emt 0:00:09]} Rxf2 {[%emt 0:00:19]} 31. Rxg7 {[%emt 0:00:13]} 0-1

[Event "IV Estrellas 2022"]
[Site "La Palma"]
[Date "2022.08.07"]
[Round "3.18"]
[White "Amador Garcia, Ismael"]
[Black "Bethencourt Hernandez, Alberto"]
[Result "1-0"]
[ECO "B31"]
[WhiteElo "2128"]
[BlackElo "1681"]
[Annotator "RC"]
[PlyCount "147"]
[EventDate "2022.08.06"]
[EventType "swiss"]
[EventCountry "ESP"]
[SourceTitle "playchess.com"]
[Source "ChessBase"]
[SourceQuality "1"]
[TimeControl "5400+30"]

1. e4 {[%emt 0:00:03]} c5 {[%emt 0:00:23]} 2. Nf3 {[%emt 0:00:05]} Nc6 {[%emt 0:00:31]} 3. Bb5 {[%emt 0:00:12]} g6 {[%emt 0:00:24]} 4. O-O {[%emt 0:00:05]} Bg7 {[%emt 0:00:12]} 5. Re1 {[%emt 0:04:03]} Nf6 {[%emt 0:02:08]} 6. h3 {[%emt 0:05:28]} O-O {[%emt 0:02:04]} 7. a4 {[%emt 0:00:48]} a6 {[%emt 0:06:59]} 8. Bxc6 {[%emt 0:00:42]} bxc6 {[%emt 0:00:20]} 9. e5 {[%emt 0:04:34]} Nd5 {[%emt 0:00:47]} 10. Na3 {[%emt 0:02:10]} d6 {[%emt 0:08:40]} 11. Nc4 {[%emt 0:00:34]} Nb6 {[%emt 0:00:53]} 12. Nxb6 {[%emt 0:01:46]} Qxb6 {[%emt 0:00:06]} 13. a5 {[%emt 0:00:15]} Qc7 {[%emt 0:00:42]} 14. Qe2 {[%emt 0:00:07]} Bf5 {[%emt 0:05:37]} 15. d3 {[%emt 0:01:27]} Rab8 {[%emt 0:00:53]} 16. b3 {[%emt 0:00:50]} Rb5 {[%emt 0:01:10]} 17. Bd2 {[%emt 0:01:16]} dxe5 {[%emt 0:07:11]} 18. Ra4 {[%emt 0:05:21]} f6 {[%emt 0:02:35]} 19. Qe3 {[%emt 0:01:33]} Rd8 {[%emt 0:08:27]} 20. Bc3 {[%emt 0:00:50]} Qd6 {[%emt 0:06:35]} 21. Nd2 {[%emt 0:01:43]} g5 {[%emt 0:12:15]} 22. Nc4 {[%emt 0:03:50]} Qc7 {[%emt 0:00:12]} 23. Na3 {[%emt 0:03:25]} Rbb8 {[%emt 0:06:40]} 24. Qxc5 {[%emt 0:01:34]} e6 {[%emt 0:04:53]} 25. Qe3 {[%emt 0:00:57]} Bf8 {[%emt 0:00:49]} 26. Nc4 {[%emt 0:00:11]} Rb5 {[%emt 0:01:38]} 27. Qf3 {[%emt 0:01:04]} Kg7 {[%emt 0:05:53]} 28. Bd2 {[%emt 0:26:13]} Bc5 {[%emt 0:02:30]} 29. Be3 {[%emt 0:04:50]} Bd4 {[%emt 0:00:09]} 30. Bxd4 {[%emt 0:02:05]} Rxd4 {[%emt 0:00:09]} 31. Raa1 {[%emt 0:00:47]} Rf4 {[%emt 0:01:48]} 32. Qe3 {[%emt 0:02:09]} e4 {[%emt 0:02:26]} 33. dxe4 {[%emt 0:00:57]} Rxe4 {[%emt 0:00:09]} 34. Qc3 {[%emt 0:00:22]} Rxe1+ {[%emt 0:07:02]} 35. Rxe1 {[%emt 0:00:23]} e5 {[%emt 0:00:06]} 36. Rd1 {[%emt 0:00:56]} Rd5 {[%emt 0:00:57]} 37. Ne3 {[%emt 0:02:27]} Rxd1+ {[%emt 0:00:02]} 38. Nxd1 {[%emt 0:00:07]} Qd6 {[%emt 0:00:51]} 39. Ne3 {[%emt 0:00:12]} Be6 {[%emt 0:00:03]} 40. Qc4 {[%emt 0:08:22]} Bxc4 {[%emt 0:01:40]} 41. Nf5+ {[%emt 0:00:03]} Kf8 {[%emt 0:00:10]} 42. Nxd6 {[%emt 0:00:04]} Be6 {[%emt 0:00:26]} 43. Ne4 {[%emt 0:07:05]} Ke7 {[%emt 0:00:48]} 44. c4 {[%emt 0:00:09]} h6 {[%emt 0:00:58]} 45. Kf1 {[%emt 0:00:17]} f5 {[%emt 0:00:52]} 46. Nc5 {[%emt 0:00:02]} Bc8 {[%emt 0:00:06]} 47. Ke2 {[%emt 0:00:04]} Kd6 {[%emt 0:00:34]} 48. b4 {[%emt 0:00:03]} e4 {[%emt 0:00:14]} 49. f3 {[%emt 0:05:16]} exf3+ {[%emt 0:00:10]} 50. Kxf3 {[%emt 0:00:03]} Ke5 {[%emt 0:01:40]} 51. Ke3 {[%emt 0:00:03]} f4+ {[%emt 0:00:08]} 52. Kd3 {[%emt 0:00:04]} h5 {[%emt 0:00:44]} 53. b5 {[%emt 0:00:19]} cxb5 {[%emt 0:00:12]} 54. cxb5 {[%emt 0:00:03]} axb5 {[%emt 0:01:36]} 55. a6 {[%emt 0:00:17]} Bxa6 {[%emt 0:00:03]} 56. Nxa6 {[%emt 0:00:03]} g4 {[%emt 0:00:07]} 57. hxg4 {[%emt 0:00:06]} hxg4 {[%emt 0:00:07]} 58. Nb4 {[%emt 0:01:35]} Kf5 {[%emt 0:03:46]} 59. Nc6 {[%emt 0:01:21]} f3 {[%emt 0:00:00]} 60. g3 {[%emt 0:00:09]} Kf6 {[%emt 0:00:07]} 61. Ke3 {[%emt 0:00:28]} Kg5 {[%emt 0:01:23]} 62. Nb4 {[%emt 0:00:57]} Kf5 {[%emt 0:00:00]} 63. Nd3 {[%emt 0:00:04]} Ke6 {[%emt 0:00:00]} 64. Kd4 {[%emt 0:01:37]} Kf5 {[%emt 0:00:52]} 65. Nf2 {[%emt 0:00:06]} b4 {[%emt 0:00:17]} 66. Kc4 {[%emt 0:00:10]} Ke5 {[%emt 0:00:08]} 67. Kxb4 {[%emt 0:00:18]} Kd4 {[%emt 0:00:08]} 68. Nxg4 {[%emt 0:00:06]} Kd3 {[%emt 0:00:28]} 69. Kc5 {[%emt 0:00:13]} Ke2 {[%emt 0:00:30]} 70. Kd4 {[%emt 0:00:03]} Kf1 {[%emt 0:00:12]} 71. Ke3 {[%emt 0:00:31]} Kg2 {[%emt 0:00:11]} 72. Kf4 {[%emt 0:00:02]} Kh3 {[%emt 0:00:11]} 73. Nf2+ {[%emt 0:00:21]} Kg2 {[%emt 0:00:06]} 74. Ne4 {[%emt 0:00:04]} 1-0

[Event "IV Estrellas 2022"]
[Site "La Palma"]
[Date "2022.08.08"]
[Round "4.1"]
[White "Del Rio De Angelis, Salvador G."]
[Black "Herrera Reyes, Jose Antonio"]
[Result "1-0"]
[ECO "E10"]
[WhiteElo "2442"]
[BlackElo "2345"]
[Annotator "RC"]
[PlyCount "105"]
[EventDate "2022.08.06"]
[EventType "swiss"]
[EventCountry "ESP"]
[SourceTitle "playchess.com"]
[Source "ChessBase"]
[SourceQuality "1"]
[TimeControl "5400+30"]

1. d4 {[%emt 0:00:12]} Nf6 {[%emt 0:00:53]} 2. c4 {[%emt 0:00:25]} c5 {[%emt 0:00:07]} 3. d5 {[%emt 0:00:30]} b5 {[%emt 0:01:12]} 4. Nf3 {[%emt 0:00:38]} e6 {[%emt 0:05:18]} 5. Bf4 {[%emt 0:00:45]} d6 {[%emt 0:04:41]} 6. dxe6 {[%emt 0:03:55]} fxe6 {[%emt 0:00:23]} 7. cxb5 {[%emt 0:00:59]} Be7 {[%emt 0:05:27]} 8. Nc3 {[%emt 0:03:33]} O-O {[%emt 0:00:18]} 9. e3 {[%emt 0:02:03]} a6 {[%emt 0:02:11]} 10. h3 {[%emt 0:02:39]} Bb7 {[%emt 0:06:03]} 11. bxa6 {[%emt 0:01:59]} Nxa6 {[%emt 0:00:33]} 12. Be2 {[%emt 0:00:11]} Nc7 {[%emt 0:02:04]} 13. O-O {[%emt 0:00:54]} Nfd5 {[%emt 0:01:54]} 14. Nxd5 {[%emt 0:05:19]} Bxd5 {[%emt 0:01:38]} 15. Qc2 {[%emt 0:09:28]} Qe8 {[%emt 0:11:20]} 16. Nd2 {[%emt 0:15:48]} Qc6 {[%emt 0:04:30]} 17. Bf3 {[%emt 0:00:09]} Bxf3 {[%emt 0:07:59]} 18. Nxf3 {[%emt 0:00:06]} Rf6 {[%emt 0:01:07]} 19. Bg3 {[%emt 0:03:19]} Rg6 {[%emt 0:02:13]} 20. Nd4 {[%emt 0:03:32]} Qb7 {[%emt 0:03:14]} 21. Ne2 {[%emt 0:01:05]} Rf8 {[%emt 0:14:05]} 22. Rad1 {[%emt 0:06:00]} Nd5 {[%emt 0:06:05]} 23. e4 {[%emt 0:01:40]} Nb4 {[%emt 0:00:18]} 24. Qb1 {[%emt 0:00:54]} e5 {[%emt 0:03:31]} 25. a3 {[%emt 0:04:32]} Nc6 {[%emt 0:00:16]} 26. b4 {[%emt 0:00:08]} cxb4 {[%emt 0:04:22]} 27. axb4 {[%emt 0:00:06]} Bd8 {[%emt 0:02:51]} 28. b5 {[%emt 0:00:54]} Ne7 {[%emt 0:00:13]} 29. Kh2 {[%emt 0:06:06]} Bb6 {[%emt 0:02:40]} 30. f4 {[%emt 0:07:12]} Ra8 {[%emt 0:05:43]} 31. f5 {[%emt 0:01:53]} Rf6 {[%emt 0:00:53]} 32. Bh4 {[%emt 0:01:06]} Bc5 {[%emt 0:01:30]} 33. Bxf6 {[%emt 0:00:39]} gxf6 {[%emt 0:00:01]} 34. Rf3 {[%emt 0:00:36]} Kh8 {[%emt 0:00:58]} 35. Ng3 {[%emt 0:00:13]} Ng8 {[%emt 0:00:52]} 36. Qb3 {[%emt 0:19:02]} Qg7 {[%emt 0:00:30]} 37. Rb1 {[%emt 0:00:00]} Rb8 {[%emt 0:00:26]} 38. Qe6 {[%emt 0:00:00]} Qg5 {[%emt 0:00:18]} 39. b6 {[%emt 0:00:00]} Rb7 {[%emt 0:00:51]} 40. Qd5 {[%emt 0:00:00]} Rxb6 {[%emt 0:00:30]} 41. Rxb6 {[%emt 0:00:00]} Bxb6 {[%emt 0:00:00]} 42. Qxd6 {[%emt 0:00:00]} Ba7 {[%emt 0:00:53]} 43. Qd1 {[%emt 0:00:00]} Nh6 {[%emt 0:00:36]} 44. Ra3 {[%emt 0:00:00]} Bf2 {[%emt 0:00:29]} 45. Ra8+ {[%emt 0:00:00]} Ng8 {[%emt 0:00:01]} 46. Qg4 {[%emt 0:00:00]} Qxg4 {[%emt 0:00:50]} 47. hxg4 {[%emt 0:00:00]} Kg7 {[%emt 0:00:39]} 48. Rb8 {[%emt 0:00:00]} h6 {[%emt 0:00:32]} 49. Rb7+ {[%emt 0:00:00]} Kf8 {[%emt 0:00:01]} 50. Nh5 {[%emt 0:00:00]} Bh4 {[%emt 0:00:21]} 51. Ng7 {[%emt 0:00:00]} Bg5 {[%emt 0:01:07]} 52. Ne6+ {[%emt 0:00:00]} Ke8 {[%emt 0:00:01]} 53. Rb8+ {[%emt 0:00:00]} 1-0

[Event "IV Estrellas 2022"]
[Site "La Palma"]
[Date "2022.08.08"]
[Round "4.2"]
[White "Garcia Blanco, Omar"]
[Black "Baskin, Robert"]
[Result "0-1"]
[ECO "B13"]
[WhiteElo "2352"]
[BlackElo "2408"]
[Annotator "RC"]
[PlyCount "110"]
[EventDate "2022.08.06"]
[EventType "swiss"]
[EventCountry "ESP"]
[SourceTitle "playchess.com"]
[Source "ChessBase"]
[SourceQuality "1"]
[TimeControl "5400+30"]

1. e4 {[%emt 0:00:02]} c6 {[%emt 0:00:10]} 2. d4 {[%emt 0:00:06]} d5 {[%emt 0:00:06]} 3. exd5 {[%emt 0:00:05]} cxd5 {[%emt 0:00:04]} 4. c4 {[%emt 0:00:19]} Nf6 {[%emt 0:00:07]} 5. Nc3 {[%emt 0:00:07]} Nc6 {[%emt 0:00:10]} 6. Nf3 {[%emt 0:01:57]} Bg4 {[%emt 0:00:30]} 7. cxd5 {[%emt 0:00:10]} Nxd5 {[%emt 0:00:06]} 8. Qb3 {[%emt 0:00:18]} Bxf3 {[%emt 0:00:09]} 9. gxf3 {[%emt 0:00:06]} e6 {[%emt 0:00:06]} 10. Qxb7 {[%emt 0:00:16]} Nxd4 {[%emt 0:00:05]} 11. Bb5+ {[%emt 0:00:17]} Nxb5 {[%emt 0:00:05]} 12. Qc6+ {[%emt 0:00:12]} Ke7 {[%emt 0:00:04]} 13. Qc5+ {[%emt 0:00:22]} Nd6 {[%emt 0:01:13]} 14. Nxd5+ {[%emt 0:00:06]} exd5 {[%emt 0:00:05]} 15. O-O {[%emt 0:00:14]} Qc8 {[%emt 0:03:22]} 16. Qxd5 {[%emt 0:02:05]} Qb7 {[%emt 0:01:27]} 17. Qe5+ {[%emt 0:00:21]} Kd7 {[%emt 0:00:16]} 18. Bf4 {[%emt 0:00:25]} Re8 {[%emt 0:09:30]} 19. Qd4 {[%emt 0:00:09]} Re6 {[%emt 0:04:36]} 20. Rac1 {[%emt 0:02:31]} Rg6+ {[%emt 0:11:19]} 21. Bg3 {[%emt 0:00:11]} h5 {[%emt 0:00:23]} 22. h4 {[%emt 0:03:05]} Be7 {[%emt 0:06:43]} 23. Qa4+ {[%emt 0:01:31]} Kd8 {[%emt 0:00:50]} 24. Rfd1 {[%emt 0:29:19]} Rhh6 {[%emt 0:05:34]} 25. Rc6 {[%emt 0:16:59]} Rxg3+ {[%emt 0:05:38]} 26. fxg3 {[%emt 0:01:14]} Rg6 {[%emt 0:00:09]} 27. Kf2 {[%emt 0:15:16]} Qxb2+ {[%emt 0:06:05]} 28. Rc2 {[%emt 0:00:45]} Qb7 {[%emt 0:07:39]} 29. Kg2 {[%emt 0:01:47]} Re6 {[%emt 0:04:24]} 30. Rd3 {[%emt 0:02:48]} Re5 {[%emt 0:07:21]} 31. Qd4 {[%emt 0:06:31]} f6 {[%emt 0:01:52]} 32. Qc4 {[%emt 0:00:10]} g5 {[%emt 0:07:44]} 33. Qf7 {[%emt 0:03:15]} Qd7 {[%emt 0:04:10]} 34. Qg8+ {[%emt 0:01:24]} Qe8 {[%emt 0:00:06]} 35. Qc4 {[%emt 0:00:57]} Qd7 {[%emt 0:00:54]} 36. Qb3 {[%emt 0:00:59]} Qb5 {[%emt 0:01:10]} 37. Qg8+ {[%emt 0:00:27]} Qe8 {[%emt 0:01:04]} 38. Qc4 {[%emt 0:03:50]} Qd7 {[%emt 0:00:13]} 39. Qb4 {[%emt 0:00:26]} Ke8 {[%emt 0:02:50]} 40. Rcd2 {[%emt 0:01:17]} Qb5 {[%emt 0:02:12]} 41. Qd4 {[%emt 0:01:59]} gxh4 {[%emt 0:01:44]} 42. Qxa7 {[%emt 0:02:08]} hxg3 {[%emt 0:03:27]} 43. Qa8+ {[%emt 0:00:56]} Kf7 {[%emt 0:00:06]} 44. Qh8 {[%emt 0:00:07]} Ne8 {[%emt 0:01:13]} 45. f4 {[%emt 0:00:52]} Re1 {[%emt 0:00:38]} 46. Kxg3 {[%emt 0:04:21]} Qf5 {[%emt 0:01:27]} 47. Kf2 {[%emt 0:00:45]} Re4 {[%emt 0:00:32]} 48. Rf3 {[%emt 0:00:30]} Bf8 {[%emt 0:02:27]} 49. Rb2 {[%emt 0:00:26]} Rxf4 {[%emt 0:00:26]} 50. Rb7+ {[%emt 0:00:20]} Be7 {[%emt 0:00:09]} 51. Rbb3 {[%emt 0:00:20]} Bc5+ {[%emt 0:00:14]} 52. Kg2 {[%emt 0:00:29]} Qg4+ {[%emt 0:00:09]} 53. Rg3 {[%emt 0:00:37]} Rf2+ {[%emt 0:00:17]} 54. Kh1 {[%emt 0:00:17]} Qd1+ {[%emt 0:00:06]} 55. Rg1 {[%emt 0:00:13]} Qd5+ {[%emt 0:00:04]} 0-1